Cogmind - Beta 14 @@@ ROGUE MODE // 2024.11.20 @ 21:11:20 Player: WazdakkaGutsmek Result: Destroyed by G-47 Trooper with Particle Gun Performance ------------- Evolutions (2) 1000 Regions Visited (3) 600 Robots Destroyed (28) 140 Value Destroyed (831) 831 Prototype IDs (1) 20 Alien Tech Used (0) 0 Bonus (0) 0 TOTAL SCORE: 2591 Bonus ------- None Cogmind --------- Core Integrity 0/550 Matter 284/300 Energy 98/100 System Corruption 0% Temperature Cool (9) Movement Core (50) Location -8/Materials Parts ------- > --- POWER (1) -------- (None) > --- PROPULSION (4) --- (None) > --- UTILITY (4) ------ (None) > --- WEAPON (2) ------- (None) > --- INVENTORY (5) ---- Light Deuterium Engine VTOL Module VTOL Module VTOL Module Autogun Peak State ------------ > --- POWER ------------ Light Deuterium Engine > --- PROPULSION ------- Light Treads Light Treads Light Treads > --- UTILITY ---------- Small Storage Unit Medium Storage Unit Targeting Computer > --- WEAPON ----------- Advanced Beam Rifle Advanced Beam Rifle > --- INVENTORY -------- Light Deuterium Engine Light Deuterium Engine VTOL Module VTOL Module VTOL Module Autogun Axe [Rating: 18] Favorites ----------- Power Ion Engine Engine Ion Engine Propulsion Light Treads Treads Light Treads Leg Aluminum Leg Utility Targeting Computer Storage Small Storage Unit Processor Targeting Computer Protection Medium Armor Plating Weapon Assault Rifle Energy Gun Medium Laser Ballistic Gun Assault Rifle Slashing Weapon Axe Build | -11 -10 -9 -8 ------- Run | Yrd Mat Mat Mat Slots Evolved 4 | . . 2 2 Power . | . . . . Propulsion 2 | . . 1 1 Utility 2 | . . 1 1 Weapon . | . . . . Parts Attached 13 | . 2 9 2 Power 2 | . . 1 1 Engine 2 | . . 1 1 Core . | . . . . Reactor . | . . . . Propulsion 3 | . 2 1 . Treads 3 | . 2 1 . Leg . | . . . . Wheel . | . . . . Hover . | . . . . Flight . | . . . . Utility 3 | . . 3 . Device . | . . . . Storage 1 | . . 1 . Processor 1 | . . 1 . Hackware . | . . . . Protection 1 | . . 1 . Artifact . | . . . . Weapon 5 | . . 4 1 Energy Gun 4 | . . 4 . Energy Cannon . | . . . . Ballistic Gun . | . . . . Ballistic Cannon . | . . . . Launcher . | . . . . Special Weapon . | . . . . Impact Weapon . | . . . . Slashing Weapon 1 | . . . 1 Piercing Weapon . | . . . . Special Melee Weapon . | . . . . Unidentified Prototypes 1 | . . 1 . Parts Lost 7 | . . 2 5 Power 1 | . . . 1 Propulsion 3 | . . 1 2 Utility 1 | . . 1 . Weapon 2 | . . . 2 Highest Loss Streak 5 | . . 1 5 To Critical Strikes . | . . . . Average Slot Usage (%) 84 | . 84 91 40 Engine 10 | . 14 11 5 Treads 27 | . 22 31 10 Storage 10 | . 14 11 6 Processor 8 | . . 10 6 Protection 3 | . . 4 . Energy Gun 13 | . 14 13 12 Ballistic Gun 8 | . 14 8 . Peak Build Rating 18 | . 6 18 16 Average Rating 10 | . 5 11 10 On Entrance 8 | 6 6 6 16 Naked Turns 49 | . . . 49 Heaviest Build 21 | 14 14 21 19 Greatest Support 60 | 20 40 60 40 Greatest Overweight (x) . | . . . . Average Overweight (x) . | . . . . Largest Inventory Capacity 10 | . 8 10 10 Average Capacity 8 | . 8 8 8 Most Carried 8 | . 7 8 7 Average Carried 5 | . 4 5 6 Final Capacity 10 | 8 8 10 5 Final Carried 7 | 6 4 7 5 Class Distribution -------------------- 100% | Mutant Dominant Class ---------------- Mutant | -10/Materials Mutant | -9/Materials Mutant | -8/Materials Resources | -11 -10 -9 -8 ----------- Run | Yrd Mat Mat Mat Matter Collected 512 | 169 . 287 56 Remotely . | . . . . Salvage Created 1041 | . 51 774 216 Parts 60 | . 5 44 11 Haulers Intercepted 1 | . . 1 . Recyclers Shooed 1 | . . . 1 Parts Field Recycled . | . . . . Retrieved Matter . | . . . . Parts Self-Destructed . | . . . . Prevented . | . . . . Kills | -11 -10 -9 -8 ------- Run | Yrd Mat Mat Mat Combat Hostiles Destroyed 24 | . 1 17 6 Guns 24 | . 1 17 6 Classes Destroyed 6 | . 2 4 . Hauler 1 | . . 1 . Operator 3 | . 1 1 1 Swarmer 6 | . . 3 3 Grunt 12 | . 1 9 2 Duelist 2 | . . 2 . Sentry 4 | . . 3 1 Best Kill Streak 10 | . 1 10 7 Combat Bots Only 10 | . 1 10 3 Max Kills in Single Turn 1 | . 1 1 1 Gunslinging . | . . . . Exploded . | . . . . Melee . | . . . . Uniques/NPCs Destroyed . | . . . . Combat | -11 -10 -9 -8 -------- Run | Yrd Mat Mat Mat Hostile Shots Fired 196 | . 1 86 109 Missed 51 | . 1 20 30 Damage Taken 1875 | . . 850 1025 Core 708 | . . 153 555 Absorbed by Shields . | . . . . Core Remaining (%) 87 | 100 100 61 . Volleys Fired 84 | . 6 60 18 Largest 2 | . 2 2 2 Hottest 122 | . 70 122 122 Shots Fired 167 | . 12 119 36 Gun 167 | . 12 119 36 Cannon . | . . . . Launcher . | . . . . Special . | . . . . Kinetic 55 | . 6 49 . Thermal 109 | . 6 67 36 Explosive . | . . . . Electromagnetic 3 | . . 3 . Robot Hit Streak 11 | . 4 11 5 Robot Miss Streak 5 | . 2 5 5 Penetration Max . | . . . . Secondary Targets 3 | . . 3 . Max Gunslinging Chain 1 | . . 1 . Shots Hit Robots 100 | . 8 75 17 Core Hits 49 | . 3 35 11 Critical Kills . | . . . . Critical Parts Destroyed 1 | . . 1 . Critical Strikes 10 | . 2 5 3 Burn 9 | . 2 4 3 Destroy 1 | . . 1 . Melee Attacks . | . . . . Impact . | . . . . Slashing . | . . . . Piercing . | . . . . Sneak Attacks . | . . . . Combat Hostiles . | . . . . Follow-up Attacks . | . . . . Damage Inflicted 1618 | . 101 1095 422 Guns 1588 | . 101 1087 400 Cannons . | . . . . Explosions . | . . . . Melee . | . . . . Ramming 30 | . . 8 22 Kinetic 338 | . 63 275 . Thermal 1234 | . 38 796 400 Explosive . | . . . . Electromagnetic 16 | . . 16 . Impact . | . . . . Slashing . | . . . . Piercing . | . . . . Highest Corruption . | . . . . Average Corruption . | . . . . Corruption Purged . | . . . . Corruption Blocked . | . . . . Overload Shots . | . . . . Overflow Damage . | . . . . Projectiles . | . . . . Explosions . | . . . . Melee . | . . . . Knockbacks . | . . . . Impact . | . . . . Kinetic . | . . . . Secondary . | . . . . Self-Inflicted Damage 10 | . . . 10 Shots . | . . . . Rammed 9 | . . 4 5 Targets Rammed 9 | . . 4 5 Kicked . | . . . . Crushed . | . . . . Highest Temperature 570 | . 9 240 570 Average Temperature 97 | . 6 56 204 Received Heat Transfer 810 | . . 369 441 Effects 7 | . . . 7 Shutdowns 1 | . . . 1 Energy Bleed 1 | . . . 1 Interference 2 | . . . 2 Matter Decay 1 | . . . 1 Damage (major) 2 | . . . 2 Siege Activations . | . . . . Robots Corrupted . | . . . . Combat Hostiles . | . . . . Parts Fried . | . . . . Impact Corruptions . | . . . . Robots Melted . | . . . . Combat Hostiles . | . . . . Parts Melted 9 | . . 4 5 Heat Transferred 3515 | . 259 2294 962 Parts Sabotaged . | . . . . Parts Stolen . | . . . . Parts Stripped . | . . . . Power Chain Reactions . | . . . . Alert | -11 -10 -9 -8 ------- Run | Yrd Mat Mat Mat Peak Influence 282 | . 54 274 282 Initial 77 | . . 22 77 Average 135 | . 35 155 175 Maximum Alert Level 1 | . . 1 1 Low Security (%) 72 | . 100 69 53 Level 1 27 | . . 30 46 Level 2 . | . . . . Level 3 . | . . . . Level 4 . | . . . . Level 5 . | . . . . High Security . | . . . . Max Security . | . . . . Squads Dispatched 6 | . 1 2 3 Investigation . | . . . . Extermination . | . . . . Reinforcement 6 | . 1 2 3 Assault . | . . . . Garrison . | . . . . Intercept . | . . . . Searches Triggered . | . . . . Construction Impeded . | . . . . Haulers Reinforced . | . . . . Active Scanning Responses . | . . . . Cargo Convoy Interrupts . | . . . . Stealth | -11 -10 -9 -8 --------- Run | Yrd Mat Mat Mat Distress Signals 3 | . . 3 . Communications Jammed . | . . . . Distress Signals . | . . . . Times Spotted 63 | . 6 30 27 Peak Tracking Total 13 | . 2 7 13 Tactical Retreats 2 | . . 1 1 Traps | -11 -10 -9 -8 ------- Run | Yrd Mat Mat Mat Traps Triggered 1 | . . 1 . Indirectly . | . . . . Trap Hack Attempts . | . . . . Triggered . | . . . . Disarmed . | . . . . Reprogrammed . | . . . . Reused . | . . . . Traps Extracted . | . . . . Installed . | . . . . Triggered . | . . . . Machines | -11 -10 -9 -8 ---------- Run | Yrd Mat Mat Mat Machines Disabled . | . . . . Max in Single Turn . | . . . . Machines Repaired . | . . . . Machines Dismantled . | . . . . Machines Sabotaged . | . . . . Overloaded Fab Kills . | . . . . Hacking | -11 -10 -9 -8 --------- Run | Yrd Mat Mat Mat Machines Accessed 5 | . 1 4 . Terminals 5 | . 1 4 . Fabricators . | . . . . Repair Stations . | . . . . Recycling Units . | . . . . Scanalyzers . | . . . . Garrison Access . | . . . . Total Hacks 10 | . 1 9 . Successful 4 | . 1 3 . Failed 6 | . . 6 . Catastrophic 2 | . . 2 . Database Lockouts . | . . . . Manual 10 | . 1 9 . Terminals 10 | . 1 9 . Fabricators . | . . . . Repair Stations . | . . . . Recycling Units . | . . . . Scanalyzers . | . . . . Garrison Access . | . . . . Terminal Hacks . | . . . . Fabricator Hacks . | . . . . Repair Station Hacks . | . . . . Recycling Unit Hacks . | . . . . Scanalyzer . | . . . . Garrison Access Hacks . | . . . . Unauthorized Hacks 4 | . 1 3 . Terminals 4 | . 1 3 . Botnet 2 | . . 2 . Skim 2 | . 1 1 . Fabricators . | . . . . Repair Stations . | . . . . Recycling Units . | . . . . Scanalyzers . | . . . . Garrison Access . | . . . . Data Cores Recovered . | . . . . Used . | . . . . Hacking Detections 4 | . 1 3 . Full Trace Events 1 | . . 1 . Feedback Events . | . . . . Feedback Blocked . | . . . . Robot Schematics Acquired . | . . . . Robots Built . | . . . . Authchips . | . . . . Time . | . . . . Total Robot Build Rating . | . . . . Part Schematics Acquired . | . . . . Parts Built . | . . . . Authchips . | . . . . Time . | . . . . Total Part Build Rating . | . . . . Parts Repaired . | . . . . Time . | . . . . Parts Recycled . | . . . . Recycled Matter . | . . . . Retrieved Matter . | . . . . Retrieved Components . | . . . . Parts Scanalyzed . | . . . . Part Schematics Acquired . | . . . . Parts Damaged . | . . . . Bothacking | -11 -10 -9 -8 ------------ Run | Yrd Mat Mat Mat Used RIF Installer . | . . . . Robots Hacked . | . . . . Non-combat . | . . . . Combat . | . . . . Robot Hacks Applied . | . . . . Relay Couplers Released . | . . . . Fabnet Peak Effective % . | . . . . Robots Rewired . | . . . . Allies Hacked . | . . . . Hacks Repelled . | . . . . Allies | -11 -10 -9 -8 -------- Run | Yrd Mat Mat Mat Total Allies . | . . . . Largest Group . | . . . . Highest-Rated Group . | . . . . Highest-Rated Ally . | . . . . Total Orders . | . . . . Ally Attacks . | . . . . Total Damage . | . . . . Kills . | . . . . Allies Corrupted . | . . . . Allies Melted . | . . . . Intel | -11 -10 -9 -8 ------- Run | Yrd Mat Mat Mat Robot Analysis Total . | . . . . Derelict Logs Recovered . | . . . . Drone Launches . | . . . . Drone Recoveries . | . . . . Exploration | -11 -10 -9 -8 ------------- Run | Yrd Mat Mat Mat Turns Passed 1437 | . 266 998 173 Spaces Moved 764 | 1 160 475 128 Core 88 | . . . 88 Treads 631 | . 116 475 40 Legs 45 | 1 44 . . Wheels . | . . . . Hover . | . . . . Flight . | . . . . Fastest Speed 50 | 120 120 160 50 Average Speed 144 | 120 149 160 84 Slowest Speed 160 | 120 160 160 160 Overloaded Moves . | . . . . Propulsion Burnouts . | . . . . Robots Hopped . | . . . . Cave-ins Triggered . | . . . . Exploration Rate (%) 26 | 2 32 48 23 Regions Visited 3 Branch Regions . Pre-discovered Areas . | . . . . Known Exits Taken . | . . . . Unknown Exits Taken 3 | 1 1 1 . Scrap Searched . | . . . . Spaces Dug . | . . . . Terrain Destroyed . | . . . . Melee . | . . . . Projectile . | . . . . AOE . | . . . . Terrain Rammed . | . . . . Walls Destroyed . | . . . . Machines Disabled . | . . . . Actions | -11 -10 -9 -8 --------- Run | Yrd Mat Mat Mat Total 931 | . 180 594 157 Wait 29 | . 1 24 4 Move 761 | . 159 474 128 Hop . | . . . . Pick Up 15 | . 4 11 . Fast Attach 4 | . . 4 . Attach 6 | . 2 2 2 Detach 4 | . 2 2 . Swap 3 | . . 3 . Drop 16 | . 6 10 . Fire 84 | . 6 60 18 Melee . | . . . . Ram 5 | . . . 5 Kick . | . . . . Crush 4 | . . 4 . Escape Stasis . | . . . . Rewire . | . . . . Trap . | . . . . Miscellaneous . | . . . . Route ------- -11/Scrapyard -10/Materials -9/Materials -8/Materials History --------- Turn | Location | Event 1 | -11/Scrapyard | Discovered new exit (range 0) 1 | -11/Scrapyard | Entered Materials 108 | -10/Materials | Discovered new exit (range 14) 267 | -10/Materials | Entered another Materials area 267 | -9/Materials | Evolved 2 slots: Propulsion x1, Utility x1 309 | -9/Materials | Build established: Mutant 816 | -9/Materials | Destroyed 10 combat bots 1193 | -9/Materials | Discovered new exit (range 15) 1265 | -9/Materials | Entered another Materials area 1265 | -8/Materials | Evolved 2 slots: Propulsion x1, Utility x1 1382 | -8/Materials | Core integrity fell below 50% 1389 | -8/Materials | Released all parts (4) 1415 | -8/Materials | Core integrity fell below 20% 1418 | -8/Materials | Lost 5 parts (1p2n2w) 1438 | -8/Materials | Destroyed by G-47 Trooper with Particle Gun Last Messages --------------- 01392_ Acquired 15 matter. 01392_ Slammed into G-47 Trooper. 01393_ Acquired 41 matter. 01395_ M-28 Smith repairs G-47 Trooper. 01403_ T-07 Excavator is excavating. 01405_ Slammed into R-06 Scavenger. 01407_ T-07 Excavator is excavating. 01414_ Slammed into U-05 Engineer. 01415_ O-16 Technician: "IFF HANDSHAKE FAILED. SECURING TERMINAL." 01416_ ALERT: Hostiles spotted, dispatching reinforcements to Terminal M003. 01419_ O-16 Technician: "IFF HANDSHAKE FAILED. SECURING TERMINAL." 01419_ O-16 Technician uses terminal to summon reinforcements. 01419_ ALERT: Hostiles spotted, dispatching reinforcements to Terminal M001. 01419_ O-16 Technician locks terminal. 01434_ K-01 Serf collects debris. Map ----- +----------------------------------------------------+ | | | | | | | | | ?????????????????????????????????????????????????? | | ?????????????????????????????????????????????????? | | ?????????????????????????????????????????????????? | | ?????????????????????????????????????????????????? | | ?????????????????????????????????????????????????? | | ?????????????????????????????????????????????????? | | ?????????????????????????????????????????????????? | | ?????????????????????????????????????????????????? | | ?????????????????????????????????????????????????? | | ?????????????????????????????????????????????????? | | ?????????????????????????????????????????????????? | | ?????????????????????##??????????????????????????? | | ?????????????????????# ""????????????????????????? | | ?????????????????????# ""????????????????????????? | | ?????????????????????# ""????????????????????????? | | ?????????????????????? ????????????????????????? | | ?????????????????????? ????????????????????????? | | ??????????????????????? ????????????????????????? | | ??????????????????????##g###????????? #?????????? | | ??????????????????????# ##??????? #?????????? | | ??????????????????????# g"#?????? #?????????? | | ??????????????????????# @ T#?####? #?????????? | | ??????????????????????#!! "#?"""# # "???????? | | ??????????????????????#!! g###"Y"# + ????????? | | ??????????????????????#! + / #?????????? | | ??????????????????????# # #?????????? | | ??????????????????????# # #?????????? | | ??????????????????????# # ] #?????????? | | ??????????????????????###### #?????????? | | ????????????????????????#""" """ #?????????? | | ????????????????????????#"R """ + ????????? | | ????????????????????????#""" """ #? ???????? | | ????????????????????????# "" #?????????? | | ????????????################ #?????????? | | ????????????# """ #?????????? | | ????????????# """ ????????? | | ????????????+ """ ???????? | | ????????????# ?????????? | | ????????????# #?????????? | | ????????????# ####+############+####?????????? | | ????????????# #? ??????????????????????????? | | ????????????# # ???????????????????????????? | | ??????##+#### # ""???????????????????????????? | | ?????## # "????????????????????????????? | | ?????+ ^ # "?? ?????????????????????????? | | ?????## #???? ?????????????????????????? | +----------------------------------------------------+ Best States ------------- Heat Dissipation 31 Energy Generation 14 Energy Capacity 250 Matter Stores 300 Matter Capacity 300 Sight Range 16 Terrain Scan Density 10 Armor Coverage 225 Evasion (%) 55 Targeting Accuracy 5 Recoil Reduction 3 Item Schematics ----------------- None Robot Schematics ------------------ None Fabricated ------------ Nothing Alien Tech Used ----------------- None Achievements -------------- None Challenges ------------ None Game ------ Seed DimensionalFrostRipteeth Manual? 0 Play Time 00:10:30 Cumulative 128.9 hours Start 2024.11.20 @ 21:00:30 End 2024.11.20 @ 21:11:20 Sessions 1 Manual Loads 0 Difficulty Rogue Special Mode None Game No. 105 Rogue 86 Adventurer 16 Explorer 3 Win Type - Total 10 Types 8/0/1/1/0/0/0/0/0 Lore% 26 Gallery% 64 Achievement% 58 Wizard Run 0 Options --------- Layout 2 ASCII 0 Keyboard 0 Movement Numpad Keybinds 1 Fullscreen 1 Font 24/Terminus Map View 50x44 Zoom Use 0% Tactical HUD 1 Map Filters NONE Filters NONE Steam 1 RUN: ce5c0f97-ee5a-4144-afdf-adcd0dfd4a3a